fUSD/lending_fUSD_20251024
["ID","MTS","AMOUNT","RATE_DAILY","PERIOD"]
[392307397,1761322356365,-27946.36656357,0.000433,120]
[392307398,1761322356375,-110522.92924851,0.000433,30]
[392307399,1761322356386,-500.0,0.00043315,30]
[392307400,1761322356397,-5043.9459,0.00043338,30]
[392307401,1761322356407,-364.60994939,0.000434,2]
[392307402,1761322356416,-2000.0,0.000434,2]
[392307403,1761322356425,-1000.0,0.000434,2]
[392307404,1761322356435,-166.66,0.00043403,2]
[392307405,1761322356445,-644.61516002,0.00043414,28]
[392307406,1761322356455,-1091.0,0.00043437,30]
[392307407,1761322356466,-1192.71,0.00043461,120]
[392307408,1761322356477,-248.46,0.00043461,120]
[392307409,1761322356489,-307.11508332,0.000435,120]
[392307410,1761322356499,-500.0,0.00043559,30]
[392307411,1761322356510,-234.859181,0.00043561,30]
[392307412,1761322356520,-808.712269,0.00043561,30]
[392307413,1761322356529,-277.693017,0.00043561,30]
[392307414,1761322356539,-500.0,0.00043561,30]
[392307415,1761322356548,-500.0,0.00043561,30]
[392307416,1761322356559,-622.47,0.00043561,30]
[392307417,1761322356569,-500.0,0.00043561,30]
[392307418,1761322356578,-509.02,0.00043561,30]
[392307419,1761322356588,-516.35,0.00043561,30]
[392307420,1761322356598,-825.82,0.00043561,30]
[392307421,1761322356608,-500.0,0.00043561,30]
[392307422,1761322356617,-643.54415012,0.00043561,30]
[392307423,1761322356627,-500.0,0.00043561,30]
[392307424,1761322356637,-500.0,0.00043561,30]
[392307425,1761322356646,-500.0,0.00043561,30]
[392307426,1761322356656,-500.0,0.00043561,30]
[392307427,1761322356666,-607.61,0.00043561,30]
[392307428,1761322356675,-500.0,0.00043561,30]
[392307429,1761322356684,-500.0,0.00043561,30]
[392307430,1761322356694,-510.24,0.00043561,30]
[392307431,1761322356886,-500.0,0.00043561,30]
[392307432,1761322356896,-500.0,0.00043561,30]
[392307433,1761322356906,-500.0,0.00043561,30]
[392307434,1761322356917,-500.0,0.00043561,30]
[392307435,1761322356927,-500.0,0.00043561,30]
[392307436,1761322356936,-500.0,0.00043561,30]
[392307437,1761322356946,-500.0,0.00043561,30]
[392307438,1761322356956,-500.0,0.00043561,30]
[392307439,1761322356965,-644.18,0.00043561,30]
[392307440,1761322356976,-500.0,0.00043561,30]
[392307441,1761322356986,-500.0,0.00043561,30]
[392307442,1761322356996,-626.86,0.00043561,30]
[392307443,1761322357007,-769.96,0.00043561,30]
[392307444,1761322357017,-500.0,0.00043561,30]
[392307445,1761322357027,-538.58,0.00043561,30]
[392307446,1761322357036,-500.0,0.00043561,30]
[392307447,1761322357046,-500.0,0.00043561,30]
[392307448,1761322357056,-500.0,0.00043561,30]
[392307449,1761322357066,-500.0,0.00043561,30]
[392307450,1761322357076,-801.91,0.00043561,30]
[392307451,1761322357086,-500.0,0.00043561,30]
[392307452,1761322357096,-500.0,0.00043561,30]
[392307453,1761322357106,-515.08,0.00043561,30]
[392307454,1761322357115,-627.53,0.00043561,30]
[392307455,1761322357125,-631.49,0.00043561,30]
[392307456,1761322357135,-500.0,0.00043561,30]
[392307457,1761322357145,-500.0,0.00043561,30]
[392307458,1761322357155,-858.53,0.00043561,30]
[392307459,1761322357165,-500.0,0.00043561,2]
[392307460,1761322357175,-235.74222951,0.00043561,30]
[392307461,1761322357185,-499.74261036,0.00043561,30]
[392307462,1761322357195,-500.0,0.00043561,30]
[392307463,1761322357205,-635.93,0.00043561,30]
[392307464,1761322357215,-500.0,0.00043561,30]
[392307465,1761322357225,-500.0,0.00043561,30]
[392307466,1761322357235,-500.0,0.00043561,30]
[392307467,1761322357245,-741.25,0.00043561,30]
[392307468,1761322357255,-692.25,0.00043561,30]
[392307469,1761322357264,-633.45,0.00043561,30]
[392307470,1761322357274,-500.0,0.00043561,30]
[392307471,1761322357284,-500.0,0.00043561,30]
[392307472,1761322357294,-682.78,0.00043561,30]
[392307473,1761322357304,-244.81534549,0.00043561,30]
[392307474,1761322357313,-500.0,0.00043561,30]
[392307475,1761322357323,-500.0,0.00043561,30]
[392307476,1761322357333,-898.81,0.00043561,30]
[392307477,1761322357343,-385.3947049,0.00043561,30]
[392307478,1761322357353,-700.85,0.00043561,30]
[392307479,1761322357363,-585.39415026,0.00043561,30]
[392307480,1761322357372,-500.0,0.00043561,30]
[392307481,1761322357382,-663.01,0.00043561,30]
[392307482,1761322357396,-500.0,0.00043561,30]
[392307483,1761322357406,-709.15,0.00043561,30]
[392307484,1761322357416,-707.03,0.00043561,30]
[392307485,1761322357427,-829.57,0.00043561,30]
[392307486,1761322357436,-952.31,0.00043561,30]
[392307487,1761322357446,-500.0,0.00043561,30]
[392307488,1761322357456,-500.0,0.00043561,30]
[392307489,1761322357466,-527.2,0.00043561,30]
[392307490,1761322357475,-500.0,0.00043561,30]
[392307491,1761322357485,-500.0,0.00043561,30]
[392307492,1761322357495,-500.0,0.00043561,30]
[392307493,1761322357505,-771.78,0.00043561,30]
[392307494,1761322357515,-706.52,0.00043561,30]
[392307495,1761322357525,-768.08,0.00043561,30]
[392307496,1761322357535,-599.68,0.00043561,30]
[392307497,1761322357544,-500.0,0.00043561,30]
[392307498,1761322357554,-500.0,0.00043561,30]
[392307499,1761322357564,-613.19,0.00043561,30]
[392307500,1761322357573,-500.0,0.00043561,30]
[392307501,1761322357583,-613.95,0.00043561,30]
[392307502,1761322357592,-500.0,0.00043561,30]
[392307503,1761322357603,-627.71,0.00043561,30]
[392307504,1761322357612,-500.0,0.00043561,30]
[392307505,1761322357622,-662.69,0.00043561,30]
[392307506,1761322357632,-526.63,0.00043561,30]
[392307507,1761322357642,-500.0,0.00043561,30]
[392307508,1761322357651,-1090.4,0.00043561,30]
[392307509,1761322357662,-500.0,0.00043561,30]
[392307510,1761322357671,-500.65,0.00043561,30]
[392307511,1761322357680,-500.0,0.00043561,30]
[392307512,1761322357690,-500.0,0.00043561,30]
[392307513,1761322357699,-624.06,0.00043561,30]
[392307514,1761322357708,-755.72,0.00043561,30]
[392307515,1761322357718,-500.0,0.00043561,30]
[392307516,1761322357728,-740.41,0.00043561,30]
[392307517,1761322357737,-500.0,0.00043561,30]
[392307518,1761322357749,-500.0,0.00043561,30]
[392307519,1761322357762,-500.0,0.00043561,30]
[392307520,1761322357772,-500.0,0.00043561,30]
[392307521,1761322357782,-500.0,0.00043561,30]
[392307522,1761322357795,-500.0,0.00043561,30]
[392307523,1761322357805,-500.0,0.00043561,30]
[392307524,1761322357815,-500.0,0.00043561,30]
[392307525,1761322357827,-500.0,0.00043561,30]
[392307526,1761322357837,-1136.13,0.00043561,30]
[392307527,1761322357846,-464.15734,0.00043561,30]
[392307528,1761322357856,-549.55,0.00043561,30]
[392307529,1761322357866,-638.56,0.00043561,30]
[392307530,1761322357876,-686.03,0.00043561,30]
[392307531,1761322357886,-500.0,0.00043561,30]
[392307532,1761322357896,-706.79,0.00043561,30]
[392307533,1761322357906,-382.666022,0.00043561,30]
[392307534,1761322357916,-500.0,0.00043561,30]
[392307535,1761322357926,-500.0,0.00043561,30]
[392307536,1761322357936,-602.64,0.00043561,30]
[392307537,1761322357946,-586.4,0.00043561,30]
[392307538,1761322357956,-547.9,0.00043561,30]
[392307539,1761322357966,-500.0,0.00043561,30]
[392307540,1761322357976,-566.32,0.00043561,30]
[392307541,1761322357986,-2351.88,0.00043561,2]
[392307542,1761322357996,-500.0,0.00043561,30]
[392307543,1761322358006,-506.73,0.00043561,30]
[392307544,1761322358016,-500.0,0.00043561,30]
[392307545,1761322358026,-500.0,0.00043561,30]
[392307546,1761322358037,-500.0,0.00043561,30]
[392307547,1761322358046,-500.0,0.00043561,30]
[392307548,1761322358056,-772.81,0.00043561,30]
[392307549,1761322358066,-670.73,0.00043561,30]
[392307550,1761322358077,-500.0,0.00043561,30]
[392307551,1761322358091,-500.0,0.00043561,30]
[392307552,1761322358101,-200.0,0.00043561,30]
[392307553,1761322358111,-500.0,0.00043561,30]
[392307554,1761322358122,-850.65,0.00043561,30]
[392307555,1761322358132,-500.0,0.00043561,30]
[392307556,1761322358142,-507.25,0.00043561,30]
[392307557,1761322358152,-784.75,0.00043561,30]
[392307558,1761322358162,-500.0,0.00043561,30]
[392307559,1761322358172,-500.0,0.00043561,30]
[392307560,1761322358182,-500.0,0.00043561,30]
[392307561,1761322358193,-500.0,0.00043561,30]
[392307562,1761322358204,-601.83,0.00043561,30]
[392307563,1761322358213,-732.62,0.00043561,30]
[392307564,1761322358224,-610.23,0.00043561,30]
[392307565,1761322358234,-523.68,0.00043561,30]
[392307566,1761322358244,-445.08987778,0.00043561,30]
[392307567,1761322358254,-500.0,0.00043561,30]
[392307568,1761322358264,-500.0,0.00043561,30]
[392307569,1761322358274,-762.88,0.00043561,30]
[392307570,1761322358284,-626.64,0.00043561,30]
[392307571,1761322358294,-157.75833212,0.00043561,30]
[392307572,1761322358304,-895.22,0.00043561,30]
[392307573,1761322358314,-500.0,0.00043561,30]
[392307574,1761322358323,-500.0,0.00043561,30]
[392307575,1761322358334,-500.0,0.00043561,30]
[392307576,1761322358343,-821.0,0.00043561,30]
[392307577,1761322358353,-500.0,0.00043561,30]
[392307578,1761322358363,-500.0,0.00043561,30]
[392307579,1761322358372,-500.0,0.00043561,30]
[392307580,1761322358383,-564.45,0.00043561,30]
[392307581,1761322358392,-500.0,0.00043561,30]
[392307582,1761322358403,-500.0,0.00043561,30]
[392307583,1761322358412,-500.0,0.00043561,30]
[392307584,1761322358422,-911.49,0.00043561,30]
[392307585,1761322358433,-558.27,0.00043561,30]
[392307586,1761322358444,-500.0,0.00043561,30]
[392307587,1761322358454,-500.0,0.00043561,30]
[392307588,1761322358466,-169.87144021,0.00043561,30]
[392307589,1761322358477,-500.0,0.00043561,30]
[392307590,1761322358488,-500.0,0.00043561,30]
[392307591,1761322358498,-645.37,0.00043561,30]
[392307592,1761322358509,-500.0,0.00043561,30]
[392307593,1761322358519,-500.0,0.00043561,30]
[392307594,1761322358530,-654.32,0.00043561,30]
[392307595,1761322358539,-600.0,0.00043561,30]
[392307596,1761322358550,-1087.75,0.00043561,30]
[392307597,1761322358560,-618.14,0.00043561,30]
[392307598,1761322358570,-597.11,0.00043561,30]
[392307599,1761322358579,-756.12,0.00043561,30]
[392307600,1761322358588,-601.75,0.00043561,30]
[392307601,1761322358598,-500.0,0.00043561,30]
[392307602,1761322358608,-500.0,0.00043561,30]
[392307603,1761322358618,-712.8,0.00043561,30]
[392307604,1761322358628,-500.0,0.00043561,30]
[392307605,1761322358639,-500.0,0.00043561,30]
[392307606,1761322358648,-555.24,0.00043561,30]
[392307607,1761322358658,-540.6,0.00043561,30]
[392307608,1761322358668,-652.9,0.00043561,30]
[392307609,1761322358678,-647.27,0.00043561,30]
[392307610,1761322358688,-500.0,0.00043561,30]
[392307611,1761322358698,-500.0,0.00043561,30]
[392307612,1761322358707,-500.0,0.00043561,30]
[392307613,1761322358717,-571.05,0.00043561,30]
[392307614,1761322358727,-500.0,0.00043561,30]
[392307615,1761322358738,-500.0,0.00043561,30]
[392307616,1761322358750,-500.0,0.00043561,30]
[392307617,1761322358760,-756.91,0.00043561,30]
[392307618,1761322358771,-522.74,0.00043561,30]
[392307619,1761322358781,-632.46,0.00043561,30]
[392307620,1761322358791,-500.0,0.00043561,30]
[392307621,1761322358801,-500.0,0.00043561,30]
[392307622,1761322358811,-711.07,0.00043561,30]
[392307623,1761322358821,-739.05,0.00043561,30]
[392307624,1761322358834,-500.0,0.00043561,30]
[392307625,1761322358845,-602.18,0.00043561,30]
[392307626,1761322358855,-500.0,0.00043561,30]
[392307627,1761322358865,-786.39,0.00043561,30]
[392307628,1761322358875,-500.0,0.00043561,30]
[392307629,1761322358886,-300.0,0.00043561,2]
[392307630,1761322358896,-726.2,0.00043561,30]
[392307631,1761322358906,-589.03,0.00043561,30]
[392307632,1761322358917,-660.65,0.00043561,30]
[392307633,1761322358928,-771.99,0.00043561,30]
[392307634,1761322358938,-712.13,0.00043561,30]
[392307635,1761322358948,-741.67,0.00043561,30]
[392307636,1761322358959,-692.09,0.00043561,30]
[392307637,1761322358969,-500.0,0.00043561,30]
[392307638,1761322358979,-992.81,0.00043561,30]
[392307639,1761322358990,-506.74,0.00043561,30]
[392307640,1761322359001,-500.0,0.00043561,30]
[392307641,1761322359012,-500.0,0.00043561,30]
[392307642,1761322359022,-500.0,0.00043561,30]
[392307643,1761322359033,-834.39,0.00043561,30]
[392307644,1761322359043,-597.68,0.00043561,30]
[392307645,1761322359053,-852.93,0.00043561,30]
[392307646,1761322359063,-500.0,0.00043561,30]
[392307647,1761322359073,-730.33,0.00043561,30]
[392307648,1761322359083,-500.0,0.00043561,30]
[392307649,1761322359094,-500.0,0.00043561,30]
[392307650,1761322359104,-500.0,0.00043561,30]
[392307651,1761322359115,-804.87,0.00043561,30]
[392307652,1761322359126,-500.0,0.00043561,30]
[392307653,1761322359136,-500.0,0.00043561,30]
[392307654,1761322359146,-1592.15,0.00043561,30]
[392307655,1761322359156,-957.33,0.00043561,30]
[392307656,1761322359167,-500.0,0.00043561,30]
[392307657,1761322359177,-500.0,0.00043561,30]
[392307658,1761322359187,-500.0,0.00043561,30]
[392307659,1761322359197,-500.0,0.00043561,30]
[392307660,1761322359207,-500.0,0.00043561,30]
[392307661,1761322359217,-533.69,0.00043561,30]
[392307662,1761322359227,-543.13,0.00043561,30]
[392307663,1761322359236,-705.53,0.00043561,30]
[392307664,1761322359245,-500.0,0.00043561,30]
[392307665,1761322359255,-500.0,0.00043561,30]
[392307666,1761322359264,-500.0,0.00043561,30]
[392307667,1761322359274,-616.40132432,0.00043561,30]
[392307668,1761322359285,-637.51,0.00043561,30]
[392307669,1761322359295,-500.0,0.00043561,30]
[392307670,1761322359304,-721.76,0.00043561,30]
[392307671,1761322359314,-350.96481752,0.00043561,30]
[392307672,1761322359323,-835.57,0.00043561,30]
[392307673,1761322359333,-500.0,0.00043561,30]
[392307674,1761322359344,-500.0,0.00043561,30]
[392307675,1761322359354,-547.46303336,0.00043561,30]
[392307676,1761322359363,-752.46,0.00043561,30]
[392307677,1761322359373,-500.0,0.00043561,30]
[392307678,1761322359384,-500.0,0.00043561,30]
[392307679,1761322359394,-500.0,0.00043561,30]
[392307680,1761322359457,-1181.61,0.00043561,30]
[392307681,1761322359467,-500.0,0.00043561,30]
[392307682,1761322359476,-590.26,0.00043561,30]
[392307683,1761322359486,-24520.78,0.00043561,30]
[392307684,1761322359496,-500.0,0.00043561,120]
[392307685,1761322359505,-597.68,0.00043561,30]
[392307686,1761322359515,-2227.55,0.00043561,30]
[392307687,1761322359524,-500.0,0.00043561,30]
[392307688,1761322359534,-500.0,0.00043561,30]
[392307689,1761322359544,-500.0,0.00043561,30]
[392307690,1761322359554,-635.68,0.00043561,30]
[392307691,1761322359563,-518.98,0.00043561,30]
[392307692,1761322359573,-500.0,0.00043561,30]
[392307693,1761322359583,-500.0,0.00043561,30]
[392307694,1761322359593,-500.0,0.00043561,30]
[392307695,1761322359603,-500.0,0.00043561,30]
[392307696,1761322359613,-500.0,0.00043561,30]
[392307697,1761322359623,-500.0,0.00043561,30]
[392307698,1761322359633,-1049.8,0.00043561,30]
[392307699,1761322359642,-500.0,0.00043561,30]
[392307700,1761322359651,-678.75,0.00043561,30]
[392307701,1761322359661,-500.0,0.00043561,30]
[392307702,1761322359670,-675.92,0.00043561,30]
[392307703,1761322359679,-500.0,0.00043561,30]
[392307704,1761322359689,-500.0,0.00043561,30]
[392307705,1761322359699,-769.84,0.00043561,30]
[392307706,1761322359708,-643.28,0.00043561,30]
[392307707,1761322359718,-772.75,0.00043561,30]
[392307708,1761322359728,-500.0,0.00043561,30]
[392307709,1761322359737,-592.37,0.00043561,30]
[392307710,1761322359747,-500.0,0.00043561,30]
[392307711,1761322359762,-500.0,0.00043561,30]
[392307712,1761322359771,-711.48,0.00043561,30]
[392307713,1761322359780,-664.9,0.00043561,30]
[392307714,1761322359790,-500.0,0.00043561,30]
[392307715,1761322359800,-3293.92,0.00043561,30]
[392307716,1761322359809,-651.98,0.00043561,30]
[392307717,1761322359819,-555.16,0.00043561,30]
[392307718,1761322359832,-1314.62,0.00043561,30]
[392307719,1761322359843,-574.28,0.00043561,30]
[392307720,1761322359853,-500.0,0.00043561,30]
[392307721,1761322359863,-530.89,0.00043561,30]
[392307722,1761322359872,-500.0,0.00043561,30]
[392307723,1761322359882,-500.0,0.00043561,30]
[392307724,1761322359892,-612.78,0.00043561,30]
[392307725,1761322359902,-500.0,0.00043561,30]
[392307726,1761322359911,-571.0,0.00043561,30]
[392307727,1761322359922,-830.29,0.00043561,30]
[392307728,1761322359933,-945.03,0.00043561,30]
[392307729,1761322359942,-1033.26,0.00043561,30]
[392307730,1761322359951,-663.7,0.00043561,30]
[392307731,1761322359961,-500.0,0.00043561,30]
[392307732,1761322359970,-1023.75,0.00043561,30]
[392307733,1761322359980,-500.0,0.00043561,30]
[392307734,1761322359990,-500.0,0.00043561,30]
[392307735,1761322360000,-696.08,0.00043561,30]
[392307736,1761322360010,-641.73,0.00043561,30]
[392307737,1761322360019,-500.0,0.00043561,30]
[392307738,1761322360029,-500.0,0.00043561,30]
[392307739,1761322360039,-500.0,0.00043561,30]
[392307740,1761322360049,-579.17,0.00043561,30]
[392307741,1761322360058,-513.45,0.00043561,30]
[392307742,1761322360067,-500.0,0.00043561,30]
[392307743,1761322360077,-669.12,0.00043561,30]
[392307744,1761322360087,-500.0,0.00043561,30]
[392307745,1761322360097,-516.46,0.00043561,30]
[392307746,1761322360107,-704.55,0.00043561,30]
[392307747,1761322360116,-501.88,0.00043561,30]
[392307748,1761322360126,-641.27,0.00043561,30]
[392307749,1761322360139,-793.21,0.00043561,30]
[392307750,1761322360149,-564.0,0.00043561,30]
[392307751,1761322360159,-681.34,0.00043561,30]
[392307752,1761322360168,-500.0,0.00043561,30]
[392307753,1761322360178,-500.0,0.00043561,30]
[392307754,1761322360188,-583.52,0.00043561,30]
[392307755,1761322360197,-720.15,0.00043561,30]
[392307756,1761322360207,-500.0,0.00043561,30]
[392307757,1761322360216,-500.0,0.00043561,30]
[392307758,1761322360225,-522.17,0.00043561,30]
[392307759,1761322360234,-500.0,0.00043561,30]
[392307760,1761322360244,-553.64,0.00043561,30]
[392307761,1761322360253,-500.0,0.00043561,30]
[392307762,1761322360263,-500.0,0.00043561,30]
[392307763,1761322360273,-500.0,0.00043561,30]
[392307764,1761322360282,-500.0,0.00043561,30]
[392307765,1761322360291,-500.0,0.00043561,30]
[392307766,1761322360300,-338.28099946,0.00043561,30]
[392307767,1761322360309,-500.0,0.00043561,30]
[392307768,1761322360319,-3165.94,0.00043561,30]
[392307769,1761322360328,-577.34,0.00043561,30]
[392307770,1761322360338,-500.0,0.00043561,30]
[392307771,1761322360348,-781.42,0.00043561,30]
[392307772,1761322360357,-500.0,0.00043561,30]
[392307773,1761322360366,-592.04,0.00043561,30]
[392307774,1761322360375,-500.0,0.00043561,30]
[392307775,1761322360385,-507.17,0.00043561,30]
[392307776,1761322360394,-500.0,0.00043561,30]
[392307777,1761322360404,-500.0,0.00043561,30]
[392307778,1761322360413,-627.51,0.00043561,30]
[392307779,1761322360423,-500.0,0.00043561,30]
[392307780,1761322360433,-658.05,0.00043561,30]
[392307781,1761322360442,-352.08229365,0.00043561,30]
[392307782,1761322360454,-43111.76,0.00043561,30]
[392307783,1761322360464,-824.03,0.00043561,30]
[392307784,1761322360474,-572.74,0.00043561,30]
[392307785,1761322360484,-707.49,0.00043561,30]
[392307786,1761322360494,-500.0,0.00043561,2]
[392307787,1761322360503,-1143.07,0.00043561,30]
[392307788,1761322360513,-500.0,0.00043561,120]
[392307789,1761322360523,-560.87,0.00043561,30]
[392307790,1761322360532,-500.0,0.00043561,30]
[392307791,1761322360542,-500.0,0.00043561,30]
[392307792,1761322360551,-596.94,0.00043561,30]
[392307793,1761322360560,-654.5,0.00043561,30]
[392307794,1761322360571,-507.69,0.00043561,30]
[392307795,1761322360580,-500.0,0.00043561,30]
[392307796,1761322360590,-976.73,0.00043561,30]
[392307797,1761322360601,-526.28,0.00043561,30]
[392307798,1761322360611,-766.16,0.00043561,30]
[392307799,1761322360621,-500.0,0.00043561,30]
[392307800,1761322360631,-500.0,0.00043561,30]
[392307801,1761322360641,-598.92,0.00043561,30]
[392307802,1761322360651,-843.03,0.00043561,30]
[392307803,1761322360661,-500.0,0.00043561,30]
[392307804,1761322360672,-547.11,0.00043561,30]
[392307805,1761322360682,-905.81,0.00043561,30]
[392307806,1761322360692,-649.83,0.00043561,30]
[392307807,1761322360702,-605.46,0.00043561,30]
[392307808,1761322360712,-500.0,0.00043561,30]
[392307809,1761322360721,-500.0,0.00043561,30]
[392307810,1761322360731,-500.0,0.00043561,30]
[392307811,1761322360740,-675.1,0.00043561,30]
[392307812,1761322360754,-500.0,0.00043561,30]
[392307813,1761322360764,-500.0,0.00043561,30]
[392307814,1761322360774,-818.3,0.00043561,30]
[392307815,1761322360784,-500.0,0.00043561,30]
[392307816,1761322360795,-500.0,0.00043561,30]
[392307817,1761322360805,-500.0,0.00043561,30]
[392307818,1761322360814,-554.2,0.00043561,30]
[392307819,1761322360824,-500.0,0.00043561,30]
[392307820,1761322360841,-851.07,0.00043561,30]
[392307821,1761322360855,-500.0,0.00043561,30]
[392307822,1761322360866,-500.0,0.00043561,30]
[392307823,1761322360876,-500.0,0.00043561,30]
[392307824,1761322360886,-634.48,0.00043561,30]
[392307825,1761322360896,-943.35,0.00043561,30]
[392307826,1761322360906,-500.0,0.00043561,30]
[392307827,1761322360916,-500.0,0.00043561,30]
[392307828,1761322360926,-726.59,0.00043561,30]
[392307829,1761322360935,-500.0,0.00043561,30]
[392307830,1761322360945,-269.84241288,0.00043561,30]
[392307831,1761322360955,-500.0,0.00043561,30]
[392307832,1761322360966,-530.52,0.00043561,30]
[392307833,1761322360976,-554.24,0.00043561,30]
[392307834,1761322360986,-500.0,0.00043561,30]
[392307835,1761322360996,-500.0,0.00043561,30]
[392307836,1761322361006,-534.6,0.00043561,30]
[392307837,1761322361016,-500.0,0.00043561,30]
[392307838,1761322361026,-703.61,0.00043561,30]
[392307839,1761322361037,-432.7245553,0.00043561,30]
[392307840,1761322361047,-619.86,0.00043561,30]
[392307841,1761322361058,-500.0,0.00043561,30]
[392307842,1761322361068,-500.0,0.00043561,30]
[392307843,1761322361078,-540.26,0.00043561,30]
[392307844,1761322361088,-506.89,0.00043561,30]
[392307845,1761322361098,-500.0,0.00043561,30]
[392307846,1761322361109,-500.0,0.00043561,30]
[392307847,1761322361119,-500.0,0.00043561,30]
[392307848,1761322361129,-500.0,0.00043561,30]
[392307849,1761322361140,-500.0,0.00043561,30]
[392307850,1761322361149,-500.0,0.00043561,30]
[392307851,1761322361159,-730.1,0.00043561,30]
[392307852,1761322361169,-500.0,0.00043561,30]
[392307853,1761322361180,-500.0,0.00043561,30]
[392307854,1761322361190,-581.74,0.00043561,30]
[392307855,1761322361201,-561.73346336,0.00043561,30]
[392307856,1761322361211,-444.12960616,0.00043561,30]
[392307857,1761322361222,-604.04,0.00043561,30]
[392307858,1761322361233,-611.69,0.00043561,30]
[392307859,1761322361243,-500.0,0.00043561,30]
[392307860,1761322361253,-500.0,0.00043561,30]
[392307861,1761322361263,-513.05,0.00043561,30]
[392307862,1761322361273,-696.18,0.00043561,30]
[392307863,1761322361285,-500.0,0.00043561,30]
[392307864,1761322361294,-1807.7,0.00043561,30]
[392307865,1761322361304,-500.0,0.00043561,30]
[392307866,1761322361314,-500.0,0.00043561,2]
[392307867,1761322361325,-500.0,0.00043561,30]
[392307868,1761322361336,-500.0,0.00043561,30]
[392307869,1761322361346,-500.0,0.00043561,30]
[392307870,1761322361357,-1380.28,0.00043561,30]
[392307871,1761322361368,-606.24,0.00043561,30]
[392307872,1761322361378,-783.69,0.00043561,30]
[392307873,1761322361388,-500.0,0.00043561,30]
[392307874,1761322361398,-806.84,0.00043561,30]
[392307875,1761322361413,-500.0,0.00043561,30]
[392307876,1761322361423,-2341.55,0.00043561,30]
[392307877,1761322361434,-500.0,0.00043561,30]
[392307878,1761322361445,-500.0,0.00043561,30]
[392307879,1761322361456,-500.0,0.00043561,30]
[392307880,1761322361466,-500.0,0.00043561,30]
[392307881,1761322361476,-716.52,0.00043561,30]
[392307882,1761322361487,-660.17,0.00043561,30]
[392307883,1761322361497,-531.64,0.00043561,30]
[392307884,1761322361508,-538.15,0.00043561,30]
[392307885,1761322361520,-389.68828845,0.00043561,30]
[392307886,1761322361530,-92792.25965409,0.00043561,30]
[392307887,1761322361876,-265.96,0.00041095,30]
[392307888,1761322362566,-1087.39107838,0.00039302,20]
[392307889,1761322362576,-959.52262571,0.00039302,20]
[392307890,1761322362586,-151.0,0.0004,120]
[392307891,1761322362596,-454.457686,0.0004,120]
[392307892,1761322362606,-490.4042,0.0004,120]
[392307893,1761322362616,-417.201629,0.0004,120]
[392307894,1761322362625,-454.457686,0.0004,120]
[392307895,1761322362634,-454.457686,0.00040104,120]
[392307896,1761322362644,-490.4042,0.00040104,120]